fUSD/lending_fUSD_20240802
["ID","MTS","AMOUNT","RATE_DAILY","PERIOD"]
[333870628,1722585044409,-4862.09,0.00019178,2]
[333870630,1722585044418,-25213.16,0.00019178,2]
[333870632,1722585044427,-859.01,0.00019178,2]
[333870634,1722585044437,-693.16,0.00019178,2]
[333870636,1722585044446,-500.0,0.00019178,2]
[333870638,1722585044455,-4406.73,0.00019178,2]
[333870639,1722585044465,-500.0,0.00019178,2]
[333870641,1722585044474,-500.0,0.00019178,2]
[333870643,1722585044488,-852.52,0.00019178,2]
[333870645,1722585044498,-500.0,0.00019178,2]
[333870647,1722585044508,-500.0,0.00019178,2]
[333870649,1722585044517,-3609.92,0.00019178,2]
[333870651,1722585044529,-1693.66,0.00019178,2]
[333870653,1722585044539,-500.0,0.00019178,2]
[333870655,1722585044547,-9457.48,0.00019178,2]
[333870657,1722585044558,-1241.9,0.00019178,2]
[333870659,1722585044567,-2040.78,0.00019178,2]
[333870661,1722585044576,-3173.84181035,0.00019178,2]
[333870663,1722585044588,-2968.5572264,0.00019178,2]
[333870674,1722585044685,-216.98096325,0.00019178,2]
[333870676,1722585044695,-5579.66,0.00019178,2]
[333870678,1722585044705,-625.84,0.00019178,2]
[333870679,1722585044715,-500.0,0.00019178,2]
[333870681,1722585044725,-4008.77,0.00019178,2]
[333870683,1722585044735,-500.0,0.00019178,2]
[333870685,1722585044745,-3677.09,0.00019178,2]
[333870687,1722585044754,-567.86,0.00019178,2]
[333870689,1722585044764,-8002.16,0.00019178,2]
[333870691,1722585044778,-5852.43,0.00019178,2]
[333870692,1722585044787,-546.81,0.00019178,2]
[333870694,1722585044797,-3565.97,0.00019178,2]
[333870696,1722585044806,-15325.18,0.00019178,2]
[333870698,1722585044815,-3726.65,0.00019178,2]
[333870700,1722585044826,-562.32,0.00019178,2]
[333870702,1722585044835,-500.0,0.00019178,2]
[333870704,1722585044845,-3391.09,0.00019178,2]
[333870706,1722585044854,-500.0,0.00019178,2]
[333870708,1722585044864,-3160.48,0.00019178,2]
[333870710,1722585044874,-500.0,0.00019178,2]
[333870712,1722585044884,-3656.07,0.00019178,2]
[333870714,1722585044894,-4515.88,0.00019178,2]
[333870716,1722585044903,-500.0,0.00019178,2]
[333870718,1722585044912,-1746.06,0.00019178,2]
[333870720,1722585044922,-500.0,0.00019178,2]
[333870722,1722585044931,-5345.05,0.00019178,2]
[333870724,1722585044940,-500.0,0.00019178,2]
[333870726,1722585044950,-500.0,0.00019178,2]
[333870728,1722585044958,-504.52,0.00019178,2]
[333870730,1722585044968,-3280.07,0.00019178,2]
[333870732,1722585044978,-3795.79,0.00019178,2]
[333870734,1722585044987,-500.0,0.00019178,2]
[333870736,1722585044997,-761.62,0.00019178,2]
[333870738,1722585045007,-508.65,0.00019178,2]
[333870740,1722585045016,-500.0,0.00019178,2]
[333870742,1722585045028,-507.00450165,0.00019178,2]
[333870743,1722585045037,-721.12,0.00019178,2]
[333870745,1722585045047,-500.0,0.00019178,2]
[333870748,1722585045056,-2614.62,0.00019178,2]
[333870749,1722585045065,-3180.99,0.00019178,2]
[333870752,1722585045076,-1857.54,0.00019178,2]
[333870754,1722585045086,-500.0,0.00019178,2]
[333870755,1722585045094,-662.05,0.00019178,2]
[333870758,1722585045105,-1418.82,0.00019178,2]
[333870760,1722585045114,-716.19,0.00019178,2]
[333870762,1722585045124,-500.0,0.00019178,2]
[333870764,1722585045134,-25865.43,0.00019178,2]
[333870766,1722585045143,-1403.09,0.00019178,2]
[333870768,1722585045153,-500.0,0.00019178,2]
[333870770,1722585045163,-1423.21,0.00019178,2]
[333870772,1722585045173,-783.8,0.00019178,2]
[333870774,1722585045183,-500.0,0.00019178,2]
[333870776,1722585045193,-3305.07,0.00019178,2]
[333870778,1722585045203,-998.18,0.00019178,2]
[333870780,1722585045212,-2034.23,0.00019178,2]
[333870782,1722585045221,-500.0,0.00019178,2]
[333870783,1722585045231,-500.0,0.00019178,2]
[333870785,1722585045240,-808.35,0.00019178,2]
[333870787,1722585045250,-2066.38,0.00019178,2]
[333870789,1722585045261,-500.0,0.00019178,2]
[333870791,1722585045270,-613.04,0.00019178,2]
[333870793,1722585045284,-500.0,0.00019178,2]
[333870795,1722585045293,-2740.64,0.00019178,2]
[333870797,1722585045304,-662.88,0.00019178,2]
[333870799,1722585045314,-3492.92,0.00019178,2]
[333870801,1722585045323,-500.0,0.00019178,2]
[333870803,1722585045333,-500.0,0.00019178,2]
[333870805,1722585045343,-1352.27,0.00019178,2]
[333870807,1722585045352,-3047.46,0.00019178,2]
[333870809,1722585045362,-6358.72,0.00019178,2]
[333870811,1722585045371,-2137.57,0.00019178,2]
[333870813,1722585045381,-1839.24,0.00019178,2]
[333870816,1722585045396,-500.0,0.00019178,2]
[333870818,1722585045406,-4947.67,0.00019178,2]
[333870820,1722585045415,-3834.55,0.00019178,2]
[333870822,1722585045424,-1910.0,0.00019178,2]
[333870824,1722585045434,-4205.72,0.00019178,2]
[333870825,1722585045443,-500.0,0.00019178,2]
[333870827,1722585045454,-2251.88,0.00019178,2]
[333870829,1722585045463,-937.35,0.00019178,2]
[333870831,1722585045473,-2741.81,0.00019178,2]
[333870833,1722585045483,-4979.09,0.00019178,2]
[333870835,1722585045496,-627.87,0.00019178,2]
[333870838,1722585045506,-627.87,0.00019178,2]
[333870840,1722585045519,-627.87,0.00019178,2]
[333870842,1722585045534,-500.0,0.00019178,2]
[333870844,1722585045544,-627.87,0.00019178,2]
[333870846,1722585045554,-627.87,0.00019178,2]
[333870848,1722585045566,-627.87,0.00019178,2]
[333870850,1722585045575,-627.87,0.00019178,2]
[333870851,1722585045587,-627.87,0.00019178,2]
[333870852,1722585045599,-1685.95,0.00019178,2]
[333870854,1722585045610,-1765.62,0.00019178,2]
[333870855,1722585045620,-627.87,0.00019178,2]
[333870856,1722585045630,-627.87,0.00019178,2]
[333870857,1722585045640,-627.87,0.00019178,2]
[333870858,1722585045649,-627.87,0.00019178,2]
[333870859,1722585045659,-627.87,0.00019178,2]
[333870860,1722585045668,-500.0,0.00019178,2]
[333870862,1722585045681,-627.87,0.00019178,2]
[333870864,1722585045691,-627.87,0.00019178,2]
[333870866,1722585045702,-627.87,0.00019178,2]
[333870868,1722585045713,-627.87,0.00019178,2]
[333870873,1722585045723,-627.87,0.00019178,2]
[333870876,1722585045733,-627.87,0.00019178,2]
[333870879,1722585045743,-627.87,0.00019178,2]
[333870882,1722585045753,-627.87,0.00019178,2]
[333870885,1722585045762,-627.87,0.00019178,2]
[333870888,1722585045771,-500.0,0.00019178,2]
[333870891,1722585045782,-627.87,0.00019178,2]
[333870894,1722585045792,-628.00984414,0.00019178,2]
[333870897,1722585045801,-1321.1,0.00019178,2]
[333870900,1722585045810,-6953.36,0.00019178,2]
[333870903,1722585045820,-6363.93,0.00019178,2]
[333870906,1722585045829,-500.0,0.00019178,2]
[333870909,1722585045839,-8198.26,0.00019178,2]
[333870912,1722585045849,-500.0,0.00019178,2]
[333870915,1722585045860,-1286.48,0.00019178,2]
[333870918,1722585045869,-500.0,0.00019178,2]
[333870921,1722585045879,-1179.69,0.00019178,2]
[333870924,1722585045888,-699.51,0.00019178,2]
[333870928,1722585045899,-500.0,0.00019178,2]
[333870932,1722585045908,-6780.43,0.00019178,2]
[333870936,1722585045917,-3466.33,0.00019178,2]
[333870940,1722585045928,-500.0,0.00019178,2]
[333870944,1722585045938,-623.55,0.00019178,2]
[333870948,1722585045948,-5606.73,0.00019178,2]
[333870952,1722585045958,-1381.93,0.00019178,2]
[333870956,1722585045968,-1865.3,0.00019178,2]
[333870960,1722585045977,-1101.49,0.00019178,2]
[333870964,1722585045986,-1193.91,0.00019178,2]
[333870967,1722585045996,-724.88,0.00019178,2]
[333870970,1722585046005,-500.0,0.00019178,2]
[333870973,1722585046014,-500.0,0.00019178,2]
[333870976,1722585046024,-3009.35,0.00019178,2]
[333870979,1722585046034,-1158.9,0.00019178,2]
[333870982,1722585046043,-500.0,0.00019178,2]
[333870985,1722585046053,-500.0,0.00019178,2]
[333870988,1722585046062,-500.0,0.00019178,2]
[333870990,1722585046072,-500.0,0.00019178,2]
[333870993,1722585046081,-5601.92,0.00019178,2]
[333870996,1722585046091,-500.0,0.00019178,2]
[333870999,1722585046100,-500.0,0.00019178,2]
[333871002,1722585046109,-2365.79,0.00019178,2]
[333871005,1722585046119,-3294.27,0.00019178,2]
[333871008,1722585046129,-500.0,0.00019178,2]
[333871011,1722585046139,-500.0,0.00019178,2]
[333871014,1722585046149,-500.0,0.00019178,2]
[333871016,1722585046159,-1297.83,0.00019178,2]
[333871019,1722585046168,-2566.72,0.00019178,2]
[333871022,1722585046178,-10708.61,0.00019178,2]
[333871025,1722585046188,-4961.24,0.00019178,2]
[333871028,1722585046197,-564.23,0.00019178,2]
[333871031,1722585046206,-3751.92,0.00019178,2]
[333871034,1722585046216,-514.67,0.00019178,2]
[333871037,1722585046227,-1454.23,0.00019178,2]
[333871040,1722585046238,-5719.92,0.00019178,2]
[333871044,1722585046248,-500.0,0.00019178,2]
[333871045,1722585046257,-500.0,0.00019178,2]
[333871049,1722585046267,-3781.62,0.00019178,2]
[333871051,1722585046277,-1159.45,0.00019178,2]
[333871055,1722585046286,-500.0,0.00019178,2]
[333871057,1722585046296,-500.0,0.00019178,2]
[333871060,1722585046307,-2037.73,0.00019178,2]
[333871062,1722585046318,-500.0,0.00019178,2]
[333871064,1722585046328,-577.43,0.00019178,2]
[333871067,1722585046338,-1402.37,0.00019178,2]
[333871070,1722585046347,-2246.96,0.00019178,2]
[333871073,1722585046356,-2246.96,0.00019178,2]
[333871076,1722585046366,-2246.96,0.00019178,2]
[333871078,1722585046375,-2246.96,0.00019178,2]
[333871080,1722585046385,-2246.96,0.00019178,2]
[333871082,1722585046394,-1177.76,0.00019178,2]
[333871084,1722585046404,-2246.96,0.00019178,2]
[333871086,1722585046413,-2246.96,0.00019178,2]
[333871088,1722585046423,-5730.19,0.00019178,2]
[333871090,1722585046433,-2246.96,0.00019178,2]
[333871092,1722585046444,-2246.96,0.00019178,2]
[333871094,1722585046454,-2246.96,0.00019178,2]
[333871096,1722585046463,-2246.96,0.00019178,2]
[333871098,1722585046472,-500.0,0.00019178,2]
[333871100,1722585046483,-2246.96,0.00019178,2]
[333871102,1722585046495,-2246.96,0.00019178,2]
[333871104,1722585046504,-2246.96,0.00019178,2]
[333871106,1722585046513,-2246.96,0.00019178,2]
[333871108,1722585046525,-2246.96,0.00019178,2]
[333871110,1722585046534,-2246.96,0.00019178,2]
[333871112,1722585046543,-2246.96,0.00019178,2]
[333871113,1722585046552,-2246.96,0.00019178,2]
[333871114,1722585046566,-2246.96,0.00019178,2]
[333871115,1722585046575,-500.0,0.00019178,2]
[333871116,1722585046584,-500.0,0.00019178,2]
[333871117,1722585046594,-500.0,0.00019178,2]
[333871118,1722585046605,-500.0,0.00019178,2]
[333871119,1722585046894,-2621.32,0.00019178,2]
[333871120,1722585046904,-2246.96,0.00019178,2]
[333871121,1722585046914,-2246.96,0.00019178,2]
[333871123,1722585046923,-2246.96,0.00019178,2]
[333871125,1722585046932,-2247.01331535,0.00019178,2]
[333871127,1722585046942,-983.23,0.00019178,2]
[333871129,1722585046951,-427.43170345,0.00019178,2]
[333871131,1722585046961,-500.0,0.00019178,2]
[333871133,1722585046971,-500.0,0.00019178,2]
[333871135,1722585046980,-3894.52,0.00019178,2]
[333871137,1722585046989,-500.0,0.00019178,2]
[333871139,1722585047000,-500.0,0.00019178,2]
[333871141,1722585047012,-500.0,0.00019178,2]
[333871143,1722585047023,-500.0,0.00019178,2]
[333871145,1722585047032,-536.77,0.00019178,2]
[333871147,1722585047042,-500.0,0.00019178,2]
[333871149,1722585047052,-500.0,0.00019178,2]
[333871151,1722585047062,-535.57,0.00019178,2]
[333871152,1722585047071,-2666.21,0.00019178,2]
[333871153,1722585047081,-700.11,0.00019178,2]
[333871154,1722585047090,-1081.79,0.00019178,2]
[333871155,1722585047099,-197.67757253,0.00019178,2]
[333871156,1722585047109,-1355.42,0.00019178,2]
[333871157,1722585047118,-1573.24,0.00019178,2]
[333871158,1722585047127,-500.0,0.00019178,2]
[333871160,1722585047137,-500.0,0.00019178,2]
[333871162,1722585047146,-2371.03,0.00019178,2]
[333871163,1722585047155,-500.0,0.00019178,2]
[333871165,1722585047165,-500.0,0.00019178,2]
[333871167,1722585047174,-500.0,0.00019178,2]
[333871169,1722585047184,-2204.97,0.00019178,2]
[333871171,1722585047193,-500.0,0.00019178,2]
[333871173,1722585047203,-909.68,0.00019178,2]
[333871175,1722585047212,-500.0,0.00019178,2]
[333871177,1722585047221,-2281.33,0.00019178,2]
[333871179,1722585047231,-500.0,0.00019178,2]
[333871181,1722585047242,-2281.33,0.00019178,2]
[333871183,1722585047252,-2281.33,0.00019178,2]
[333871185,1722585047262,-2281.33,0.00019178,2]
[333871187,1722585047272,-2281.33,0.00019178,2]
[333871189,1722585047282,-2281.33,0.00019178,2]
[333871191,1722585047291,-2281.33,0.00019178,2]
[333871193,1722585047301,-2281.33,0.00019178,2]
[333871195,1722585047311,-2281.33,0.00019178,2]
[333871197,1722585047320,-2281.33,0.00019178,2]
[333871199,1722585047330,-2281.33,0.00019178,2]
[333871201,1722585047340,-2281.33,0.00019178,2]
[333871203,1722585047350,-2281.33,0.00019178,2]
[333871205,1722585047361,-2281.33,0.00019178,2]
[333871207,1722585047371,-2281.33,0.00019178,2]
[333871209,1722585047381,-2281.33,0.00019178,2]
[333871211,1722585047394,-2281.33,0.00019178,2]
[333871213,1722585047403,-2281.33,0.00019178,2]
[333871216,1722585047414,-2281.33,0.00019178,2]
[333871218,1722585047423,-2281.33,0.00019178,2]
[333871220,1722585047433,-2281.33,0.00019178,2]
[333871222,1722585047442,-2281.33,0.00019178,2]
[333871224,1722585047452,-2281.33,0.00019178,2]
[333871226,1722585047462,-2281.50691687,0.00019178,2]
[333871228,1722585047471,-2337.43,0.00019178,2]
[333871230,1722585047484,-2096.63,0.00019178,2]
[333871232,1722585047496,-692.05,0.00019178,2]
[333871234,1722585047506,-500.0,0.00019178,2]
[333871236,1722585047515,-500.0,0.00019178,2]
[333871238,1722585047527,-979.32,0.00019178,2]
[333871240,1722585047537,-2880.12,0.00019178,2]
[333871242,1722585047547,-500.0,0.00019178,2]
[333871244,1722585047557,-500.0,0.00019178,2]
[333871246,1722585047568,-500.0,0.00019178,2]
[333871248,1722585047577,-2548.02,0.00019178,2]
[333871250,1722585047587,-507.99401209,0.00019178,2]
[333871252,1722585047596,-500.0,0.00019178,2]
[333871254,1722585047606,-2630.76,0.00019178,2]
[333871256,1722585047615,-500.0,0.00019178,2]
[333871258,1722585047624,-500.0,0.00019178,2]
[333871260,1722585047634,-500.0,0.00019178,2]
[333871262,1722585047643,-500.0,0.00019178,2]
[333871264,1722585047652,-2924.64,0.00019178,2]
[333871266,1722585047662,-500.0,0.00019178,2]
[333871268,1722585047672,-500.0,0.00019178,2]
[333871270,1722585047682,-817.27,0.00019178,2]
[333871272,1722585047691,-758.55,0.00019178,2]
[333871274,1722585047702,-500.0,0.00019178,2]
[333871276,1722585047711,-500.0,0.00019178,2]
[333871278,1722585047721,-610.92,0.00019178,2]
[333871280,1722585047730,-500.0,0.00019178,2]
[333871282,1722585047740,-511.12,0.00019178,2]
[333871284,1722585047749,-1021.4,0.00019178,2]
[333871286,1722585047760,-1582.58,0.00019178,2]
[333871288,1722585047771,-500.0,0.00019178,2]
[333871290,1722585047782,-500.0,0.00019178,2]
[333871292,1722585047792,-500.0,0.00019178,2]
[333871294,1722585047801,-632.88,0.00019178,2]
[333871296,1722585047810,-500.0,0.00019178,2]
[333871298,1722585047820,-1411.57,0.00019178,2]
[333871300,1722585047830,-500.0,0.00019178,2]
[333871302,1722585047840,-1012.0,0.00019178,2]
[333871304,1722585047850,-500.0,0.00019178,2]
[333871306,1722585047860,-665.73,0.00019178,2]
[333871308,1722585047869,-500.0,0.00019178,2]
[333871310,1722585047879,-500.0,0.00019178,2]
[333871312,1722585047889,-500.0,0.00019178,2]
[333871314,1722585047899,-605.96,0.00019178,2]
[333871315,1722585047908,-500.0,0.00019178,2]
[333871317,1722585047918,-536.06969638,0.00019178,2]
[333871318,1722585047927,-500.0,0.00019178,2]
[333871320,1722585047937,-500.0,0.00019178,2]
[333871322,1722585047947,-2471.11,0.00019178,2]
[333871323,1722585047956,-500.0,0.00019178,2]
[333871325,1722585047965,-628.43,0.00019178,2]
[333871327,1722585047975,-500.0,0.00019178,2]
[333871328,1722585047985,-500.0,0.00019178,2]
[333871330,1722585047995,-500.0,0.00019178,2]
[333871332,1722585048006,-500.0,0.00019178,2]
[333871333,1722585048016,-500.0,0.00019178,2]
[333871335,1722585048028,-500.0,0.00019178,2]
[333871337,1722585048038,-500.0,0.00019178,2]
[333871339,1722585048048,-513.75470054,0.00019178,2]
[333871340,1722585048057,-551.29,0.00019178,2]
[333871342,1722585048068,-500.0,0.00019178,2]
[333871344,1722585048078,-585.77773372,0.00019178,2]
[333871345,1722585048088,-500.0,0.00019178,2]
[333871347,1722585048098,-2609.28,0.00019178,2]
[333871349,1722585048107,-530.43,0.00019178,2]
[333871351,1722585048117,-500.0,0.00019178,2]
[333871352,1722585048126,-784.71,0.00019178,2]
[333871354,1722585048137,-500.0,0.00019178,2]
[333871356,1722585048147,-559.56,0.00019178,2]
[333871357,1722585048157,-500.0,0.00019178,2]
[333871359,1722585048166,-944.44,0.00019178,2]
[333871361,1722585048177,-1305.08,0.00019178,2]
[333871362,1722585048187,-500.0,0.00019178,2]
[333871364,1722585048196,-500.0,0.00019178,2]
[333871366,1722585048206,-500.0,0.00019178,2]
[333871368,1722585048216,-500.0,0.00019178,2]
[333871369,1722585048226,-500.0,0.00019178,2]
[333871371,1722585048235,-500.0,0.00019178,2]
[333871373,1722585048245,-500.0,0.00019178,2]
[333871374,1722585048255,-2330.44,0.00019178,2]
[333871376,1722585048264,-500.0,0.00019178,2]
[333871378,1722585048278,-500.0,0.00019178,2]
[333871379,1722585048288,-346.30048889,0.00019178,2]
[333871381,1722585048298,-500.0,0.00019178,2]
[333871383,1722585048308,-500.0,0.00019178,2]
[333871385,1722585048318,-500.0,0.00019178,2]
[333871386,1722585048328,-500.0,0.00019178,2]
[333871388,1722585048337,-500.0,0.00019178,2]
[333871390,1722585048347,-500.0,0.00019178,2]
[333871392,1722585048356,-1099.07,0.00019178,2]
[333871394,1722585048367,-500.0,0.00019178,2]
[333871395,1722585048376,-1867.46,0.00019178,2]
[333871397,1722585048386,-500.0,0.00019178,2]
[333871399,1722585048396,-500.0,0.00019178,2]
[333871401,1722585048406,-757.69,0.00019178,2]
[333871402,1722585048416,-500.0,0.00019178,2]
[333871404,1722585048426,-500.0,0.00019178,2]
[333871406,1722585048436,-500.0,0.00019178,2]
[333871408,1722585048445,-500.0,0.00019178,2]
[333871409,1722585048455,-500.0,0.00019178,2]
[333871411,1722585048465,-1243.41,0.00019178,2]
[333871413,1722585048475,-687.15,0.00019178,2]
[333871415,1722585048493,-504.70926022,0.00019178,2]
[333871417,1722585048503,-500.0,0.00019178,2]
[333871419,1722585048513,-500.0,0.00019178,2]
[333871420,1722585048523,-3012.51,0.00019178,2]
[333871422,1722585048537,-500.0,0.00019178,2]
[333871424,1722585048547,-1925.63,0.00019178,2]
[333871426,1722585048558,-500.0,0.00019178,2]
[333871428,1722585048569,-500.0,0.00019178,2]
[333871429,1722585048579,-781.58,0.00019178,2]
[333871431,1722585048589,-504.16655274,0.00019178,2]
[333871433,1722585048598,-500.0,0.00019178,2]
[333871435,1722585048608,-1960.02,0.00019178,2]
[333871437,1722585048617,-500.0,0.00019178,2]
[333871438,1722585048627,-3118.45,0.00019178,2]
[333871440,1722585048637,-500.0,0.00019178,2]
[333871442,1722585048647,-500.0,0.00019178,2]
[333871444,1722585048657,-500.0,0.00019178,2]
[333871446,1722585048667,-500.0,0.00019178,2]
[333871448,1722585048677,-500.0,0.00019178,2]
[333871449,1722585048687,-674.67,0.00019178,2]
[333871451,1722585048697,-500.0,0.00019178,2]
[333871453,1722585048706,-500.0,0.00019178,2]
[333871455,1722585048716,-500.0,0.00019178,2]
[333871457,1722585048725,-500.0,0.00019178,2]
[333871459,1722585048734,-500.0,0.00019178,2]
[333871461,1722585048744,-500.0,0.00019178,2]
[333871463,1722585048753,-500.0,0.00019178,2]
[333871464,1722585048763,-1022.94,0.00019178,2]
[333871466,1722585048772,-500.0,0.00019178,2]
[333871468,1722585048786,-500.0,0.00019178,2]
[333871471,1722585048796,-500.0,0.00019178,2]
[333871473,1722585048806,-500.0,0.00019178,2]
[333871475,1722585048815,-500.0,0.00019178,2]
[333871476,1722585048825,-500.0,0.00019178,2]
[333871479,1722585048835,-500.0,0.00019178,2]
[333871481,1722585048845,-500.0,0.00019178,2]
[333871483,1722585048855,-1000.0,0.00019178,2]
[333871485,1722585048865,-1071.37,0.00019178,2]
[333871487,1722585048875,-1695.91,0.00019178,2]
[333871488,1722585048884,-2335.6,0.00019178,2]
[333871489,1722585048894,-500.0,0.00019178,2]
[333871490,1722585048903,-500.0,0.00019178,2]
[333871491,1722585048913,-500.0,0.00019178,2]
[333871492,1722585048922,-500.0,0.00019178,2]
[333871493,1722585048932,-500.0,0.00019178,2]
[333871494,1722585048941,-500.0,0.00019178,2]
[333871495,1722585048951,-500.0,0.00019178,2]
[333871496,1722585048960,-500.0,0.00019178,2]
[333871497,1722585048970,-500.0,0.00019178,2]
[333871498,1722585048980,-500.0,0.00019178,2]
[333871499,1722585048989,-1018.16,0.00019178,2]
[333871500,1722585048998,-500.0,0.00019178,2]
[333871501,1722585049008,-500.0,0.00019178,2]
[333871502,1722585049017,-500.0,0.00019178,2]
[333871504,1722585049027,-500.0,0.00019178,2]
[333871506,1722585049037,-500.0,0.00019178,2]
[333871508,1722585049046,-1786.0,0.00019178,2]
[333871509,1722585049056,-333.09202965,0.00019178,2]
[333871511,1722585049065,-561.00000002,0.00019178,2]
[333871513,1722585049075,-499.999999,0.00019178,2]
[333871515,1722585049084,-242.881172,0.00019178,2]
[333871517,1722585049093,-500.0,0.00019178,2]
[333871519,1722585049103,-500.0,0.00019178,2]
[333871521,1722585049112,-500.0,0.00019178,2]
[333871523,1722585049122,-151.0,0.00019178,2]
[333871525,1722585049132,-500.0,0.00019178,2]
[333871527,1722585049142,-151.0,0.00019178,2]
[333871529,1722585049151,-151.0,0.00019178,2]
[333871531,1722585049160,-151.0,0.00019178,2]
[333871533,1722585049170,-151.0,0.00019178,2]
[333871535,1722585049179,-167.195664,0.00019178,2]
[333871537,1722585049189,-167.195664,0.00019178,2]
[333871539,1722585049199,-500.0,0.00019178,2]
[333871541,1722585049208,-200.0,0.00019178,2]
[333871543,1722585049218,-483.66576004,0.00019178,2]
[333871545,1722585049227,-585.26,0.00019178,2]
[333871547,1722585049236,-151.0,0.00019178,2]
[333871549,1722585049246,-151.0,0.00019178,2]
[333871551,1722585049256,-151.0,0.00019178,2]
[333871565,1722585049266,-151.0,0.00019178,2]
[333871567,1722585049392,-151.0,0.00019178,2]
[333871569,1722585049402,-1231.4,0.00019178,2]
[333871571,1722585049411,-151.0,0.00019178,2]
[333871573,1722585049420,-500.0,0.00019178,2]
[333871575,1722585049429,-2000.0,0.00019178,2]
[333871576,1722585049439,-400.0,0.00019178,2]
[333871578,1722585049448,-151.0,0.00019178,2]
[333871580,1722585049458,-151.0,0.00019178,2]
[333871582,1722585049468,-151.0,0.00019178,2]
[333871584,1722585049479,-151.0,0.00019178,2]
[333871586,1722585049491,-151.0,0.00019178,2]
[333871588,1722585049500,-240.231712,0.00019178,2]
[333871590,1722585049509,-253.284576,0.00019178,2]
[333871592,1722585049519,-151.0,0.00019178,2]
[333871594,1722585049535,-192.498159,0.00019178,2]
[333871596,1722585049545,-192.498159,0.00019178,2]
[333871598,1722585049555,-151.0,0.00019178,2]
[333871601,1722585049566,-151.0,0.00019178,2]
[333871603,1722585049576,-252.040167,0.00019178,2]
[333871605,1722585049587,-284.865536,0.00019178,2]
[333871607,1722585049596,-252.040167,0.00019178,2]
[333871609,1722585049606,-155.069033,0.00019178,2]
[333871611,1722585049616,-151.0,0.00019178,2]
[333871613,1722585049626,-155.069033,0.00019178,2]
[333871615,1722585049635,-216.39544,0.00019178,2]
[333871616,1722585049644,-151.0,0.00019178,2]
[333871618,1722585049654,-216.39544,0.00019178,2]
[333871620,1722585049664,-202.092966,0.00019178,2]
[333871622,1722585049673,-151.0,0.00019178,2]
[333871624,1722585049683,-151.0,0.00019178,2]
[333871626,1722585049693,-260.69294,0.00019178,2]
[333871628,1722585049703,-260.69294,0.00019178,2]
[333871630,1722585049712,-151.0,0.00019178,2]
[333871632,1722585049722,-151.0,0.00019178,2]
[333871634,1722585049732,-100000.0,0.00019178,2]
[333871636,1722585049742,-20000.0,0.00019178,2]
[333871638,1722585049752,-1185.847931,0.00019178,2]
[333871640,1722585049762,-1185.847931,0.00019178,2]
[333871642,1722585049771,-151.0,0.00019178,2]
[333871644,1722585049783,-151.0,0.00019178,2]
[333871646,1722585049793,-217.70529,0.00019178,2]
[333871648,1722585049802,-151.0,0.00019178,2]
[333871650,1722585049810,-151.0,0.00019178,2]
[333871652,1722585049820,-151.0,0.00019178,2]
[333871654,1722585049829,-241.035215,0.00019178,2]
[333871655,1722585049838,-678.91971,0.00019178,2]